Cogmind - Beta 16 @@@ ROGUE MODE // 2025.10.25 @ 22:56:22 Player: the Result: Self-destructed Performance ------------- Evolutions (5) 2500 Regions Visited (4) 800 Robots Destroyed (58) 290 Value Destroyed (2055) 2055 Prototype IDs (30) 600 Alien Tech Used (0) 0 Bonus (848) 848 TOTAL SCORE: 7093 Bonus ------- Follower Combat Kills 48 Registered with UFD 300 Met Optimus in HQ 500 Cogmind --------- Core Integrity 739/1000 Matter 91/300 Energy 180/180 System Corruption 3% Temperature Warm (102) Movement Core (1000) Ox19 Location -5/Factory Parts ------- > --- POWER (2) -------- Meta Core > --- PROPULSION (3) --- (None) > --- UTILITY (9+1) ---- Coolant Injector High-capacity Storage Unit Improved Sensor Array Advanced Terrain Scan Processor > --- WEAPON (3) ------- Overtuned Beamcaster Overtuned Coil Gun > --- INVENTORY (20) --- Angular Momentum Engine Medium Treads Overtuned Medium Treads Thermic Laser Thermic Laser Thermic Laser Variable Charge Gun Improved Datajack CPS Tube (2) CPS Tube (2) Vortex Trap DRS Beacon (Ready) Peak State ------------ > --- POWER ------------ Improved Deuterium Engine Meta Core > --- PROPULSION ------- Overtuned Treads Overtuned Scrapsphere Armored Huge Wheel > --- UTILITY ---------- Scrap Suit High-capacity Storage Unit Improved Signal Interpreter Experimental Terrain Scanner Improved Particle Charger Transmission Jammer Hacking Suite System Shield > --- WEAPON ----------- Overtuned Pulse Rifle Overtuned Pulse Rifle Overtuned Pulse Rifle Variable Charge Gun > --- INVENTORY -------- Angular Momentum Engine Micro Fission Core Medium Treads Overtuned Medium Treads Medium Reactive Plating Scrapoid Pod Thermic Laser Thermic Laser Thermic Laser Overtuned Beamcaster Overtuned Quantum Rifle Overtuned Coil Gun Improved Datajack CPS Tube CPS Tube Vortex Trap DRS Beacon [Rating: 90] Favorites ----------- Power Light Ion Engine Engine Light Ion Engine Power Core Light Nuclear Core Propulsion Light Treads Treads Light Treads Leg Aluminum Leg Wheel Overtuned Scrapsphere Utility Scrap Shield Device Disposable Heat Sink Storage High-capacity Storage Unit Processor Improved Signal Interpreter Hackware Hacking Suite Protection Scrap Shield Weapon Barrage Gun Energy Gun Overtuned Pulse Rifle Energy Cannon Subdweller Beam Cannon Ballistic Gun Barrage Gun Ballistic Cannon Battle Cannon Launcher Grenade Launcher Special Weapon Mining Laser Special Melee Weapon Datajack Build | -11 -10 -10 -7 -5 ------- Run | Yrd Mat Sub Scr Fac Slots Evolved 10 | . . . . 10 Power 1 | . . . . 1 Propulsion 1 | . . . . 1 Utility 7 | . . . . 7 Weapon 1 | . . . . 1 Parts Attached 73 | 2 13 27 12 19 Power 8 | . 2 1 4 1 Engine 3 | . 1 . 2 . Core 5 | . 1 1 2 1 Reactor . | . . . . . Propulsion 14 | . 4 4 4 2 Treads 10 | . 2 4 3 1 Leg 2 | . 2 . . . Wheel 2 | . . . 1 1 Hover . | . . . . . Flight . | . . . . . Utility 22 | . 5 4 . 13 Device 11 | . 3 1 . 7 Storage 3 | . 2 1 . . Processor 2 | . . . . 2 Hackware 2 | . . . . 2 Protection 4 | . . 2 . 2 Artifact . | . . . . . Weapon 29 | 2 2 18 4 3 Energy Gun 9 | . . 4 3 2 Energy Cannon 3 | . 1 2 . . Ballistic Gun 12 | 2 1 8 . 1 Ballistic Cannon 1 | . . 1 . . Launcher 1 | . . 1 . . Special Weapon 1 | . . 1 . . Impact Weapon . | . . . . . Slashing Weapon . | . . . . . Piercing Weapon . | . . . . . Special Melee Weapon 2 | . . 1 1 . Unidentified Prototypes . | . . . . . Parts Lost 16 | . . . . 16 Power 2 | . . . . 2 Propulsion 2 | . . . . 2 Utility 8 | . . . . 8 Weapon 4 | . . . . 4 Highest Loss Streak 9 | . . . . 9 To Critical Strikes 1 | . . . . 1 Average Backups 9 | . 7 7 15 13 Power . | . 1 . 1 1 Propulsion 1 | . 3 . 2 1 Utility 2 | . 1 1 4 1 Weapon 3 | . . 3 5 5 Tool/Special . | . . . . . Unused Backups 29 | . 2 5 15 7 Power 4 | . . . 3 1 Propulsion 9 | . 2 3 3 1 Utility 4 | . . . 4 . Weapon 10 | . . 2 5 3 Tool/Special 2 | . . . . 2 Average Slot Usage (%) 88 | . 93 86 95 72 Engine 11 | . 9 12 8 2 Core 2 | . 4 1 5 6 Treads 26 | . 17 28 27 6 Device 5 | . 13 1 13 16 Storage 6 | . 9 3 13 5 Protection 7 | . . 11 . 3 Energy Gun 2 | . . 1 6 17 Energy Cannon 4 | . 12 6 . . Ballistic Gun 10 | . 15 10 10 . Ballistic Cannon 3 | . . 5 . . Special Weapon 1 | . . 2 . . Special Melee Weapon 2 | . . . 8 . Peak Build Rating 90 | 2 12 18 44 90 Average Rating 16 | 1 8 12 19 74 On Entrance 14 | . 2 10 16 44 Avg Prop Armor Cover (%) 11 | . 16 . 11 10 Naked Turns . | . . . . . Heaviest Build 103 | 2 31 50 57 103 Greatest Support 48 | 3 40 40 48 36 Greatest Overweight (x) 12 | . . 1 6 12 Average Overweight (x) . | . . . 1 6 Largest Inventory Capacity 20 | 5 15 20 20 20 Average Capacity 11 | 5 11 7 20 20 Most Carried 20 | . 10 20 20 20 Average Carried 9 | . 7 7 17 15 Final Capacity 20 | 5 15 20 20 20 Final Carried 20 | . 10 20 20 12 Scrap Suit Usage (%) 2 | . . . . 62 Parts Cannibalized 2 | . . . . 2 Class Distribution -------------------- 80% | Mutant 11% | Subdweller-Mutant Dominant Class ---------------- Mutant | -10/Materials Mutant | -10/Subcaves Mutant | -7/Scraptown Derelict-Scrapper | -5/Factory Resources | -11 -10 -10 -7 -5 ----------- Run | Yrd Mat Sub Scr Fac Matter Collected 3699 | 117 359 2104 280 839 Remotely . | . . . . . Salvage Created 2403 | 143 411 1027 . 822 Parts 117 | 6 21 73 . 17 Haulers Intercepted 2 | . 2 . . . Recyclers Shooed 3 | . 3 . . . Parts Field Recycled . | . . . . . Retrieved Matter . | . . . . . Parts Self-Destructed 14 | . . 14 . . Prevented . | . . . . . Parts Restored . | . . . . . Kills | -11 -10 -10 -7 -5 ------- Run | Yrd Mat Sub Scr Fac Combat Hostiles Destroyed 43 | . 5 27 . 11 Guns 24 | . 2 14 . 8 Cannons 12 | . 3 9 . . AOE 4 | . . 4 . . Classes Destroyed 13 | 2 4 3 . 4 Worker 2 | . 2 . . . Builder 1 | . 1 . . . Tunneler 5 | 2 1 . . 2 Hauler 2 | . 2 . . . Recycler 2 | 1 . . . 1 Operator 1 | . . . . 1 Turret 2 | . . 2 . . Swarmer 4 | . . 4 . . Grunt 9 | . 5 1 . 3 Sentry 4 | . . . . 4 Hunter 1 | . . . . 1 Programmer 3 | . . . . 3 Subdweller 22 | . . 22 . . Best Kill Streak 4 | 3 2 4 . 2 Combat Bots Only 4 | . 2 4 . 2 Max Kills in Single Turn 3 | 1 1 3 . 1 Gunslinging . | . . . . . Exploded 3 | . . 3 . . Melee . | . . . . . Uniques/NPCs Destroyed . | . . . . . Combat | -11 -10 -10 -7 -5 -------- Run | Yrd Mat Sub Scr Fac Hostile Shots Fired 257 | . 18 102 . 137 Missed 78 | . 7 32 . 39 Hits 179 | . 11 70 . 98 Melee 1 | . . . . 1 Projectile 178 | . 11 70 . 97 AOE 3 | . . . . 3 Critical Strikes 6 | . . . . 6 Damage Taken 3888 | . 140 1455 . 2293 Core 423 | . 10 152 . 261 Absorbed by Shields . | . . . . . Ignored by Resistances 161 | . . . . 161 Regen/Repaired (Parts) 56 | . 43 . . 13 Core Remaining (%) 67 | 100 . . 35 . Volleys Fired 873 | 23 33 743 . 74 Largest 3 | 2 2 2 . 3 Hottest 280 | 40 80 125 . 280 Shots Fired 1092 | 46 66 843 . 137 Gun 671 | 46 45 443 . 137 Cannon 147 | . 21 126 . . Launcher 34 | . . 34 . . Special 240 | . . 240 . . Kinetic 426 | 46 45 332 . 3 Thermal 632 | . 21 477 . 134 Explosive 34 | . . 34 . . Electromagnetic . | . . . . . Robot Hit Streak 19 | 6 9 16 . 19 Robot Miss Streak 6 | 3 5 2 . 6 Penetration Max 1 | . . . . 1 Secondary Targets 2 | . . 1 . 1 Max Gunslinging Chain 1 | . . 1 . 1 Shots Hit Robots 333 | 28 44 155 13 93 Core Hits 106 | 5 19 49 . 33 Critical Kills 1 | . . 1 . . Critical Parts Destroyed 1 | 1 . . . . Critical Strikes 8 | 1 . 1 . 6 Burn 6 | . . . . 6 Destroy 2 | 1 . 1 . . Melee Attacks 16 | . . 3 13 . Impact . | . . . . . Slashing . | . . . . . Piercing . | . . . . . Sneak Attacks 16 | . . 3 13 . Combat Hostiles . | . . . . . Follow-up Attacks . | . . . . . Damage Inflicted 6535 | 235 640 3383 . 2277 Guns 4593 | 235 326 1755 . 2277 Cannons 1688 | . 281 1407 . . Explosions 197 | . . 197 . . Melee . | . . . . . Ramming 33 | . 33 . . . Kinetic 3075 | 235 326 2427 . 87 Thermal 3230 | . 281 759 . 2190 Explosive 197 | . . 197 . . Electromagnetic . | . . . . . Impact . | . . . . . Slashing . | . . . . . Piercing . | . . . . . Highest Corruption 3 | . . . . 3 Average Corruption 1 | . . . . 1 Corruption Purged . | . . . . . Corruption Blocked . | . . . . . Effects 8 | . . . . 8 Message Errors 1 | . . . . 1 Matter Fused 6 | . . . . 6 Heat Flow Errors 1 | . . . . 1 Overload Shots 1 | . . . . 1 Overflow Damage 46 | . . 46 . . Projectiles 18 | . . 18 . . Explosions 28 | . . 28 . . Melee . | . . . . . Knockbacks 7 | . . 7 . . Impact . | . . . . . Kinetic 7 | . . 7 . . Secondary . | . . . . . Self-Inflicted Damage 56 | . . 56 . . Shots 3 | . . 3 . . Rammed 5 | . 5 . . . Targets Rammed 11 | . 11 . . . Kicked 6 | . 6 . . . Crushed . | . . . . . Highest Temperature 510 | . 12 17 . 510 Average Temperature 160 | . 4 4 . 171 Received Heat Transfer 687 | . 81 246 . 360 Effects 21 | . . . . 21 Shutdowns 4 | . . . . 4 Energy Bleed 4 | . . . . 4 Interference 8 | . . . . 8 Short Circuit 1 | . . . . 1 Damage (major) 4 | . . . . 4 Siege Activations . | . . . . . Martial Activations . | . . . . . Shielding Activations . | . . . . . Robots Disrupted . | . . . . . Combat Hostiles . | . . . . . Robots Corrupted . | . . . . . Combat Hostiles . | . . . . . Parts Fried . | . . . . . Impact Corruptions . | . . . . . Robots Melted 3 | . . . . 3 Combat Hostiles 3 | . . . . 3 Parts Melted 23 | . . 1 . 22 Heat Transferred 6915 | . 592 1272 . 5051 Parts Sabotaged . | . . . . . Parts Stolen . | . . . . . Parts Stripped . | . . . . . Power Chain Reactions . | . . . . . Alert | -11 -10 -10 -7 -5 ------- Run | Yrd Mat Sub Scr Fac Maximum Alert Level . | . . . . . Low Security (%) 100 | 100 100 . . 100 Level 1 . | . . . . . Level 2 . | . . . . . Level 3 . | . . . . . Level 4 . | . . . . . Level 5 . | . . . . . High Security . | . . . . . Max Security . | . . . . . Peak Influence 96 | 5 64 . . 96 Initial 3 | . 3 . . . Average 14 | 2 11 . . 19 Influence Increases 1174 | 15 183 440 . 536 Destroy 0b10 Robot/C 500 | . 100 140 . 260 Destroy 0b10 Robot/NC 70 | 15 30 . . 25 Destroy Leader 94 | . 24 . . 70 Allied During Kill 13 | . . . . 13 Successful Hack 28 | . 28 . . . Disable Machine 90 | . . . . 90 Destroy Structure 49 | . 1 . . 48 Lose Combat Pursuer 330 | . . 300 . 30 Influence Decreases 1174 | 10 176 142 310 536 Entered New Map 319 | . 2 7 310 . Time Decay 678 | 10 174 135 . 359 Lost Part 113 | . . . . 113 Lost Ally 64 | . . . . 64 Squads Dispatched 8 | . . . . 8 Investigation 1 | . . . . 1 Extermination 2 | . . . . 2 Reinforcement 2 | . . . . 2 Assault . | . . . . . Garrison 3 | . . . . 3 Intercept . | . . . . . Searches Triggered . | . . . . . Construction Impeded 1 | . . . . 1 Haulers Reinforced . | . . . . . Active Scanning Responses . | . . . . . Cargo Convoy Interrupts 1 | . . . . 1 Stealth | -11 -10 -10 -7 -5 --------- Run | Yrd Mat Sub Scr Fac Distress Signals 4 | . 1 . . 3 Communications Jammed . | . . . . . Distress Signals . | . . . . . Times Spotted 84 | . 12 36 . 36 Peak Tracking Total 17 | . 5 6 . 17 Tactical Retreats 9 | . . 7 . 2 Traps | -11 -10 -10 -7 -5 ------- Run | Yrd Mat Sub Scr Fac Traps Triggered 3 | . . 2 . 1 Indirectly . | . . . . . Trap Hack Attempts 102 | . . 102 . . Triggered . | . . . . . Disarmed . | . . . . . Reprogrammed 12 | . . 12 . . Reused . | . . . . . Traps Extracted . | . . . . . Installed . | . . . . . Triggered . | . . . . . Most Traps Carried 2 | . . . 2 1 Objects Rigged 4 | . 4 . . . Machines | -11 -10 -10 -7 -5 ---------- Run | Yrd Mat Sub Scr Fac Machines Disabled 7 | . . 1 . 6 Max in Single Turn 1 | . . 1 . 1 Machines Repaired . | . . . . . Machines Dismantled . | . . . . . Machines Sabotaged . | . . . . . Overloaded Fab Kills . | . . . . . Hacking | -11 -10 -10 -7 -5 --------- Run | Yrd Mat Sub Scr Fac Machines Accessed 21 | . 10 2 5 4 Terminals 9 | . 7 . . 2 Fabricators . | . . . . . Repair Stations 1 | . 1 . . . Recycling Units 4 | . 2 . . 2 Scanalyzers . | . . . . . Garrison Access . | . . . . . Total Hacks 71 | . 28 12 24 7 Successful 50 | . 13 12 24 1 Failed 20 | . 14 . . 6 Catastrophic 3 | . . . . 3 Database Lockouts 1 | . 1 . . . Manual 23 | . 17 . . 6 Terminals 23 | . 20 . . 3 Fabricators . | . . . . . Repair Stations 3 | . 3 . . . Recycling Units 9 | . 5 . . 4 Scanalyzers . | . . . . . Garrison Access . | . . . . . Terminal Hacks 39 | . 3 12 24 . Record 27 | . . 11 16 . Robot Analysis 8 | . 1 . 7 . Locate Traps 2 | . 2 . . . Proto ID Catalog 2 | . . 1 1 . Fabricator Hacks . | . . . . . Repair Station Hacks 3 | . 3 . . . Scan Component 2 | . 2 . . . Repair 1 | . 1 . . . Recycling Unit Hacks 2 | . 2 . . . Retrieve Components 2 | . 2 . . . Scanalyzer . | . . . . . Garrison Access Hacks . | . . . . . Unauthorized Hacks 6 | . 5 . . 1 Terminals 5 | . 5 . . . Track 1 | . 1 . . . Botnet 2 | . 2 . . . Detonate 1 | . 1 . . . Operators 1 | . 1 . . . Fabricators . | . . . . . Repair Stations . | . . . . . Recycling Units 1 | . . . . 1 Fedlink 1 | . . . . 1 Scanalyzers . | . . . . . Garrison Access . | . . . . . Data Cores Recovered 2 | . 1 . . 1 Used 2 | . 1 . . 1 Hacking Detections 14 | . 11 . . 3 Full Trace Events . | . . . . . Feedback Events . | . . . . . Feedback Blocked . | . . . . . Robot Schematics Acquired . | . . . . . Robots Built . | . . . . . Authchips . | . . . . . Time . | . . . . . Total Robot Build Rating . | . . . . . Part Schematics Acquired . | . . . . . Parts Built . | . . . . . Authchips . | . . . . . Time . | . . . . . Total Part Build Rating . | . . . . . Part Studies Acquired . | . . . . . Parts Repaired 1 | . 1 . . . Time 26 | . 26 . . . Parts Recycled . | . . . . . Recycled Matter . | . . . . . Retrieved Matter . | . . . . . Retrieved Components 10 | . 10 . . . Parts Scanalyzed . | . . . . . Part Schematics Acquired . | . . . . . Parts Damaged . | . . . . . Bothacking | -11 -10 -10 -7 -5 ------------ Run | Yrd Mat Sub Scr Fac Used RIF Installer . | . . . . . Robots Hacked 14 | . . 1 13 . Non-combat 4 | . . 1 3 . Combat 10 | . . . 10 . Robot Hacks Applied 16 | . . 3 13 . parse_system 16 | . . 3 13 . Relay Couplers Released . | . . . . . Fabnet Peak Effective % . | . . . . . Robots Rewired . | . . . . . Allies Hacked . | . . . . . Hacks Repelled . | . . . . . Allies | -11 -10 -10 -7 -5 -------- Run | Yrd Mat Sub Scr Fac Total Allies 5 | . . . . 5 Largest Group 5 | . . . . 5 Highest-Rated Group 235 | . . . . 235 Highest-Rated Ally 47 | . . . . 47 Total Orders . | . . . . . Ally Attacks 24 | . . . . 24 Total Damage 497 | . . . . 497 Kills 3 | . . . . 3 Allies Corrupted . | . . . . . Allies Melted . | . . . . . Intel | -11 -10 -10 -7 -5 ------- Run | Yrd Mat Sub Scr Fac Active Infowar (turns) 3746 | . 1305 1340 . 1101 Sensors 513 | . . . . 513 Terrain 253 | . . . . 253 Seismic 2645 | . 1305 1340 . . Jamming 587 | . . . . 587 Robot Analysis Total 8 | . 1 . 7 . Derelict Logs Recovered 6 | . . 1 5 . Drone Launches . | . . . . . Drone Recoveries . | . . . . . Exploration | -11 -10 -10 -7 -5 ------------- Run | Yrd Mat Sub Scr Fac Turns Passed 27837 | 79 1751 18283 6556 1168 Spaces Moved 12766 | 28 913 8490 2717 618 Core 104 | 28 76 . . . Treads 11441 | . 389 8490 2562 . Legs 448 | . 448 . . . Wheels 773 | . . . 155 618 Hover . | . . . . . Flight . | . . . . . Fastest Speed 50 | 50 50 160 130 109 Average Speed 178 | 50 131 168 234 146 Slowest Speed 330 | 50 160 240 330 190 Overloaded Moves . | . . . . . Propulsion Burnouts . | . . . . . Robots Hopped . | . . . . . Potential Cave-ins 14 | . . 14 . . Cave-ins Triggered . | . . . . . Exploration Rate (%) 62 | 3 99 99 93 19 Regions Visited 4 Branch Regions 2 Pre-discovered Areas 3 | . . . 3 . Known Exits Taken . | . . . . . Unknown Exits Taken 4 | 1 1 1 1 . Scrap Searched 19 | . . 12 7 . Spaces Dug 127 | . . 121 . 6 Terrain Destroyed 415 | . . 404 . 11 Melee . | . . . . . Projectile 212 | . . 201 . 11 AOE 203 | . . 203 . . Terrain Rammed . | . . . . . Walls Destroyed . | . . . . . Machines Disabled . | . . . . . Actions | -11 -10 -10 -7 -5 --------- Run | Yrd Mat Sub Scr Fac Total 16330 | 54 1401 11146 2906 823 Wait 2200 | 2 410 1615 82 91 Move 12762 | 27 912 8489 2716 618 Hop . | . . . . . Pick Up 101 | . 13 46 35 7 Fast Attach 24 | 2 8 5 3 6 Attach 30 | . 1 8 5 16 Detach 8 | . . 2 3 3 Swap 83 | . 6 63 10 4 Drop 96 | . 7 47 38 4 Fire 873 | 23 33 743 . 74 Melee 16 | . . 3 13 . Ram . | . . . . . Kick 6 | . 6 . . . Crush 5 | . 5 . . . Escape Stasis . | . . . . . Rewire 2 | . . 1 1 . Trap 102 | . . 102 . . Miscellaneous 22 | . . 22 . . Route ------- -11/Scrapyard -10/Materials (discovered 6 exits: [*Mat x3] / [*Min x2] / *Sub) -10/Subcaves (discovered 4 exits: [*Mat x2] / [*Rec] / *Scr) -7/Scraptown (discovered 2 exits: *Fac x2) -5/Factory (discovered 2 exits: [Fac] / *Upp) History --------- Turn | Location | Event 8 | -11/Scrapyard | Discovered new exit (range 16) 80 | -11/Scrapyard | Entered Materials 81 | -10/Materials | Met a group of wandering Federalists 215 | -10/Materials | Discovered new exit (range 9) 281 | -10/Materials | Discovered new exit (range 7) 305 | -10/Materials | Build established: Mutant 327 | -10/Materials | Discovered new exit (range 6) 552 | -10/Materials | Central database locked down 725 | -10/Materials | Discovered new exit (range 12) 1353 | -10/Materials | Discovered new exit (range 12) 1600 | -10/Materials | Discovered new exit (range 8) 1783 | -10/Materials | Repaired Lgt. Treads 1831 | -10/Materials | Entered Subcaves 1832 | -10/Subcaves | Continued accompanying wandering Federalists (2) 1832 | -10/Subcaves | Approached by a straggling Scientist 1923 | -10/Subcaves | Shifting Twisted Machinery released Sub. Monowheel 2089 | -10/Subcaves | Wandering Federalist uncovered a shortcut to Scraptown 2271 | -10/Subcaves | Shifting Twisted Machinery released Battle Rifle 2329 | -10/Subcaves | Ambushed by Subdwellers from Twisted Machinery 2392 | -10/Subcaves | Discovered new exit (range 16) 2996 | -10/Subcaves | Visited Clippyterm 3001 | -10/Subcaves | Learned Research machine intel 3460 | -10/Subcaves | Disturbed a concealed Subdweller 3597 | -10/Subcaves | Discovered new exit (range 7) 3620 | -10/Subcaves | Disturbed a concealed Subdweller 3729 | -10/Subcaves | Build established: Subdweller-Mutant 3932 | -10/Subcaves | Shifting Twisted Machinery released Barrage Gun 3943 | -10/Subcaves | A swath of the cavern ceiling suddenly collapsed 4210 | -10/Subcaves | Shifting Twisted Machinery released Sub. Power Source 5124 | -10/Subcaves | Build established: Mutant 5437 | -10/Subcaves | Build established: Subdweller-Mutant 5531 | -10/Subcaves | Shifting Twisted Machinery released Sub. Monowheel 5686 | -10/Subcaves | Shifting Twisted Machinery released Barrage Gun 6311 | -10/Subcaves | Visited 4L-MR0's lab 6580 | -10/Subcaves | Build established: Mutant 8900 | -10/Subcaves | Discovered new exit (range 13) 9336 | -10/Subcaves | Ambushed by Subdweller buried in earth 9807 | -10/Subcaves | Build established: Subdweller-Mutant 10136 | -10/Subcaves | Build established: Mutant 10261 | -10/Subcaves | Learned location of 1 exit from Materials 10762 | -10/Subcaves | Build established: Subdweller-Mutant 11153 | -10/Subcaves | Build established: Mutant 12358 | -10/Subcaves | Ambushed by Subdweller buried in earth 12597 | -10/Subcaves | Ambushed by Subdweller buried in earth 12838 | -10/Subcaves | Core integrity fell below 50% 14981 | -10/Subcaves | Ambushed by Subdweller buried in earth 15139 | -10/Subcaves | Ambushed by Subdweller buried in earth 17540 | -10/Subcaves | Ambushed by Subdweller buried in earth 18141 | -10/Subcaves | Found Meta Core 20114 | -10/Subcaves | Entered Scraptown 20462 | -7/Scraptown | Visited Comm Corps 20587 | -7/Scraptown | Visited SPCMW 20665 | -7/Scraptown | Learned location of Extension (-5) 20952 | -7/Scraptown | Visited Assassins FH 21028 | -7/Scraptown | Visited Cyclists 21139 | -7/Scraptown | Scanned Subdweller tech in exchange for log data 21144 | -7/Scraptown | Learned Research stockpile data 21146 | -7/Scraptown | Learned location of 2 exits from Upper Caves 21148 | -7/Scraptown | Learned location of 2 exits from Research 21151 | -7/Scraptown | Learned Factory terminal intel 21153 | -7/Scraptown | Learned location of Zion (-6) 21624 | -7/Scraptown | Discovered new exit (range 13) 21816 | -7/Scraptown | Visited Junk Repository 21861 | -7/Scraptown | Visited The Evicted 21912 | -7/Scraptown | Visited Awakened 22053 | -7/Scraptown | Visited UFD Registry 22053 | -7/Scraptown | Registered with UFD as "Gravhead" 22269 | -7/Scraptown | Guru changed UFD alias to "Macebrain" 22557 | -7/Scraptown | Visited DA-N13 Charitable Foundation 22567 | -7/Scraptown | Found DCF Scrap (30 items) 22637 | -7/Scraptown | Visited Curators Association 22771 | -7/Scraptown | Visited Analyses Database 22865 | -7/Scraptown | Delivered Scrap Shield to a Scientist 23096 | -7/Scraptown | Visited Scrapoid Pod Storage 23142 | -7/Scraptown | Visited Infowarlord's Domain 23184 | -7/Scraptown | Visited Derelict Rescue Squad 23213 | -7/Scraptown | Visited Modified Component R&D 23316 | -7/Scraptown | Visited Observation Area 23516 | -7/Scraptown | Visited Scrapoid Research Area 23582 | -7/Scraptown | Visited Science Guys 23884 | -7/Scraptown | Entered Cyclist Reading Room 25053 | -7/Scraptown | Found Scrapoid Pod 25151 | -7/Scraptown | Found DRS Beacon 25593 | -7/Scraptown | Found Exp. Terrain Scanner 25975 | -7/Scraptown | Attached Meta Core, gained temporary slots: Propulsion, Utility, Weapon 25977 | -7/Scraptown | Found Scrap Suit 26105 | -7/Scraptown | Discovered new exit (range 3) 26266 | -7/Scraptown | Build established: Gunner 26584 | -7/Scraptown | Met Optimus 26584 | -7/Scraptown | Accepted into 0bPrime 26670 | -7/Scraptown | Entered Factory 26670 | -5/Factory | Evolved 10 slots: Power x1, Propulsion x1, Utility x7, Weapon x1 26671 | -5/Factory | Loaded intel: 28 terminal locations 26931 | -5/Factory | Discovered new exit (range 13) 26967 | -5/Factory | Identified exit to Upper Caves 26971 | -5/Factory | Build established: Derelict-Scrapper 27025 | -5/Factory | Loaded intel: 8 recycling unit locations 27262 | -5/Factory | Garrison activated, responded to threat 27418 | -5/Factory | Lost 3 parts (1p1n1u) 27571 | -5/Factory | Scrapoid Pod released 05F06-D (x5) 27798 | -5/Factory | Discovered new exit (range 19) 27821 | -5/Factory | Cargo convoy interrupted 27821 | -5/Factory | P-70 Sage assimilated allied 05F02-D 27838 | -5/Factory | Self-destructed Last Messages --------------- 27830_ W-25 Informer destroyed. 27830_ 05F05-D destroyed. 27830_ Imp. Signal Interpreter destroyed. 27830_ Ovr. Quantum Rifle destroyed. 27830_ Ovr. Pulse Rifle destroyed. 27830_ P-70 Sage destroyed. 27831_ Wall collapses. 27831_ Ovr. Scrapsphere destroyed. 27831_ W-25 Informer sends out distress signal. 27831_ U-05 Engineer builds a Wall. 27832_ Temporary Propulsion slot lost. 27833_ Critical hit (Destroy). 27833_ Mic. Fission Core destroyed. 27834_ U-05 Engineer builds a Wall. 27834_ Ovr. Beamcaster suddenly begins malfunctioning. 27834_ Penetrated by Slug. 27836_ Slug penetrates P-70 Sage. 27836_ Slug penetrates Wall. 27837_ Exp. Terrain Scanner destroyed. Map ----- +----------------------------------------------------+ | ????????? ? ????? ??## ?"" # ?? ? #???##?## | | ???????#?? ? ???? ??#?? ? ???"????""????? | | ???????? ? ? ? ?#?## ??# "?"??""?? ???""" "" | | ??? ? ? ?? ? ? ?#?#???? ?????"??"?? ?? """ "" | | ""? ?? ? ?? ??##??#???## """" "?""??? """ "" | | Y"? ? ???? #######?## """"??"?"?? | | "" #?##? ?? ? ??#????#?##???"? ""?? # """ "" | | ##?#? ? ?? #?###?#?##?""?" ??"" # """ "" | | ????#?#?? ?? ? ###?##? ## ? ? ??# """ "" | | ?? ??## ? ? ???#?##?#? ?# ? ?? ? # | | ? ##?# ?? ?? ? #?#???# ?? ? ? ?? # | | ? ####? ?? ?? + ? ?##? ?? ? # | | ? #?#?#?#???#?#########?# ## # | | ? ??#####?? ? ?#### ########?############# | | ???##? ???# ? ?#?# [[ | | ? ? ??# ? ?# ?? #### [[ | | ??? < ?/ ? ? ? ???? [[ | | ?######? # """Y""" #### | | ##??###? #??"""""""?+ !!! | | ##?#####? ??##?###??### !! | | ####? H########"#### !! | | ? ?#?#?? t i " ? | | " +? ? w %x | ? ! | | " ##### ? [h =!%! """" | | "? #??#######?###;;= i#### ""?" | | " # ? ? ;; [ %p %@ # """? | | " ## ? ""? #; !p x # T###? ?"?" #### | | " ## ""R? #; =*! ###### ??"?" ##?# | | "? ## ? "" " #; [% ####? ""?" ? #### | | " # ? #; #####? ?? ?? ??## | | " ## ?? #; !=!! ##### ? ? ?##? | | ## "" ? ;; =*=%!! ##### ? ? ###? | | ##### """ ##;; [ ######? ? ? ? #### | | ?## # " " # """" """""" # ########### | | ##### ? ? # """ """"T"""" # ?# = | | ?#### """ # """ # # !%* | | #### """ # """ +? + """ """ | | #### """ # * # # """ """ | | ??### # # # """ """ | | ?#### ? # #? # | | #############?#############+###### # """ """ | | ########################### ###### # """ """ | | ########################### # """ """ | | ##############?############ # | | ########################### """" # | | ############## ? # """" # | | ############## """" # """" ? ########### | | ############## """" # """" ##?####?### | | ###?########## """" !! !# """" ####??####? | | ############## """" !! # """" ######?#?#? | +----------------------------------------------------+ Best States ------------- Heat Dissipation 40 Coolant Potential 65 Energy Generation 28 Energy Capacity 370 Matter Stores 300 Matter Capacity 300 Sight Range 16 Robot Scan Range 15 Terrain Scan Range 30 Terrain Scan Density 210 Jamming Range 12 Armor Coverage 800 Resistance: KI 30 Resistance: TH 15 Evasion (%) 55 Recoil Reduction 2 Particle Charging 20 Offensive Hacking 10 Defensive Hacking 10 Item Schematics ----------------- None Robot Schematics ------------------ None Fabricated ------------ Nothing Repaired ---------- Lgt. Treads | 69% | -10/Materials Studied --------- None Alien Tech Used ----------------- None Achievements -------------- Barbarian Bob, First Of His Name Civilization 2243 Do Not Disturb Hack The Planet Link The Feds Longdome?! Low-level Research Strength In Numbers Challenges ------------ None Game ------ Seed ArmageddonAluminumDatajack Manual? 0 Play Time 02:24:43 Cumulative 390.8 hours Start 2025.10.25 @ 18:58:41 End 2025.10.25 @ 22:56:22 Sessions 1 Manual Loads 0 Difficulty Rogue Special Mode None Game No. 257 Rogue 257 Adventurer 0 Explorer 0 Win Type - Total 6 Types 4/0/1/0/0/0/0/1/0/0 Lore% 79 Gallery% 79 Achievement% 49 Wizard Run 0 Options --------- Layout 1 ASCII 0 Keyboard 0 Movement Numpad Keybinds 0 Fullscreen 1 Font 24/Smallcaps Map View 50x40 Zoom Use 6% Tactical HUD 1 Map Filters NONE Filters NONE Steam 1 RUN: 12ac33e1-2f96-493d-8b43-07789a341f1f